bitfinex/quotes_SOLUSD_20241205
["timestamp","ask_amount","ask_price","bid_price","bid_amount"]
[1733368256999,0.12549,233.73,233.51,0.2774982]
[1733368257209,1.06769101,233.72,233.51,0.2774982]
[1733368257881,1.06747531,233.75,233.51,0.2774982]
[1733368258076,1.06747531,233.75,233.52,11.55974921]
[1733368258296,1.06747531,233.75,233.53,0.12549]
[1733368258805,1.06747531,233.75,233.56,20.0]
[1733368258984,1.06747531,233.75,233.57,23.902374]
[1733368260938,1.06747531,233.75,233.51,0.2774982]
[1733368261310,1.06747531,233.75,233.52,0.12549]
[1733368261619,1.06747531,233.75,233.52,0.97953869]
[1733368261990,1.06747531,233.75,233.55,0.12549]
[1733368262332,1.06747531,233.75,233.62,20.0]
[1733368262488,12.9203,233.85,233.67,23.902374]
[1733368262806,12.9203,233.85,233.75,23.902374]
[1733368263022,1.06659586,233.84,233.75,23.902374]
[1733368263381,12.9203,233.85,233.75,23.902374]
[1733368263587,1.70392076,234.02,233.79,23.902374]
[1733368263820,0.58176417,234.01,233.82,20.0]
[1733368263987,0.58176417,234.01,233.83,23.902374]
[1733368264308,0.58176417,234.01,233.87,20.0]
[1733368264485,0.58176417,234.01,233.88,23.776884]
[1733368264486,0.12549,234.0,233.88,23.776884]
[1733368264687,0.12549,233.98,233.67,0.85323112]
[1733368264891,0.12549,233.98,233.58,435.7055]
[1733368264892,0.12549,233.96,233.68,0.12549]
[1733368265093,13.04579,233.94,233.61,10.7014]
[1733368265402,0.25098,233.92,233.61,0.85369475]
[1733368265587,12.9203,233.94,233.61,0.85369475]
[1733368265588,0.58176417,233.91,233.62,0.12549]
[1733368265790,0.58176417,233.91,233.64,0.12549]
[1733368265985,0.25098,233.9,233.6,7.6163]
[1733368266208,0.58176417,233.89,233.61,0.85366483]
[1733368266408,0.58176417,233.93,233.62,0.12549]
[1733368266611,0.58176417,233.93,233.68,0.12549]
[1733368266991,0.58176417,233.93,233.69,0.85327701]
[1733368267496,0.58176417,233.93,233.74,0.12549]
[1733368267704,0.58176417,233.93,233.78,0.12549]
[1733368267898,0.58176417,233.93,233.78,23.902374]
[1733368268447,0.58176417,233.93,233.65,0.85322538]
[1733368268448,0.58176417,233.93,233.82,23.902374]
[1733368268912,0.12549,233.92,233.39,36.26687005]
[1733368269115,0.12549,233.9,233.57,11.55692936]
[1733368269285,0.12549,233.88,233.57,0.85362936]
[1733368269489,24.027864,233.84,233.52,0.85381111]
[1733368269711,0.12549,233.82,233.52,0.85381111]
[1733368269908,0.12549,233.8,233.52,0.85381111]
[1733368270122,0.58176417,233.79,233.52,0.85381111]
[1733368270501,0.58176417,233.79,233.51,1.13147505]
[1733368270823,0.58176417,233.79,233.55,0.12549]
[1733368270990,0.58176417,233.84,233.55,20.9791214]
[1733368271390,0.58176417,233.84,233.53,0.85371993]
[1733368271604,0.58176417,233.84,233.52,0.85402757]
[1733368272104,0.12549,233.83,233.53,0.12549]
[1733368272309,0.12549,233.8,233.51,0.2774982]
[1733368272534,23.902374,234.1,233.51,0.2774982]
[1733368272711,1.97344722,233.96,233.51,0.2774982]
[1733368273035,10.983498,233.84,233.51,0.2774982]
[1733368274034,10.6915,233.83,233.51,0.2774982]
[1733368274231,10.983498,233.84,233.51,0.2774982]
[1733368274621,10.6872,233.93,233.51,0.2774982]
[1733368274914,0.12549,233.92,233.52,34.608074]
[1733368275112,10.6872,233.93,233.57,20.0]
[1733368275425,10.6872,233.93,233.62,23.902374]
[1733368275629,5.5351,233.92,233.62,23.902374]
[1733368275810,0.12549,233.91,233.62,23.902374]
[1733368276325,5.5351,233.92,233.66,0.12549]
[1733368276627,5.5351,233.92,233.7,0.12549]
[1733368276937,0.12549,233.91,233.7,23.902374]
[1733368277106,5.5351,233.92,233.7,23.902374]
[1733368277507,5.5351,233.92,233.74,23.776884]
[1733368277739,5.5351,234.1,233.78,23.902374]
[1733368278226,5.5351,234.1,233.78,23.776884]
[1733368278434,10.6796,234.09,233.78,23.776884]
[1733368278928,7.50854722,234.1,233.79,0.12549]
[1733368279107,9.23957169,234.1,233.79,0.12549]
[1733368280037,7.26612447,234.1,233.82,43.902374]
[1733368280326,7.26612447,234.1,233.88,23.902374]
[1733368280529,7.26612447,234.1,233.92,23.776884]
[1733368280530,5.5351,234.1,233.92,23.776884]
[1733368280729,5.5351,234.1,233.93,0.12549]
[1733368280943,5.5351,234.1,233.91,20.0]
[1733368281105,5.5351,234.1,233.86,20.0]
[1733368281310,5.5351,234.1,233.64,218.1]
[1733368281520,5.5351,234.1,233.55,213.27380856]
[1733368281521,10.6796,234.09,233.65,0.85334119]
[1733368281725,10.6796,234.09,233.62,0.85348621]
[1733368281912,23.902374,234.08,233.7,7.5201]
[1733368282230,0.12549,234.05,233.7,7.5201]
[1733368282607,0.12549,234.06,233.62,13.18668621]
[1733368282812,0.12549,234.06,233.62,12.3332]
[1733368283226,5.5351,234.05,233.62,12.3332]
[1733368283541,23.902374,234.04,233.62,12.3332]
[1733368283724,23.902374,234.02,233.63,0.12549]
[1733368284109,23.776884,234.04,233.63,0.97909521]
[1733368284313,5.5351,234.05,233.63,11.67969521]
[1733368284543,5.5351,234.05,233.65,0.12549]
[1733368284830,5.5351,234.05,233.73,20.0]
[1733368285210,5.5351,234.05,233.75,0.12549]
[1733368285410,5.5351,234.05,233.77,20.0]
[1733368285826,5.5351,234.05,233.82,0.12549]
[1733368286033,5.5351,234.05,233.86,0.12549]
[1733368286723,5.5351,234.05,233.9,0.12549]
[1733368287738,5.5351,234.05,233.86,20.0]
[1733368287939,23.776884,234.04,233.87,0.12549]
[1733368288235,1.68144133,234.13,233.91,0.12549]
[1733368288436,5.5351,234.14,233.91,0.12549]
[1733368288643,5.5351,234.14,233.91,23.902374]
[1733368289116,10.6778,234.13,233.65,10.6993]
[1733368289315,10.6778,234.13,233.7,10.6971]
[1733368289644,10.6778,234.13,233.66,0.85322477]
[1733368289645,23.902374,234.11,233.79,0.12549]
[1733368290015,0.12549,234.11,233.79,0.97843441]
[1733368290234,0.12549,234.13,233.79,0.97843441]
[1733368290708,0.12549,234.13,233.81,26.41328346]
[1733368290912,10.80329,234.13,233.81,6.41328346]
[1733368291127,0.12549,234.11,233.81,6.41328346]
[1733368291322,0.12549,234.11,233.82,0.12549]
[1733368291723,1.97344722,234.12,233.82,0.12549]
[1733368292135,5.5351,234.14,233.86,0.12549]
[1733368292314,5.5351,234.14,233.94,0.12549]
[1733368293140,5.5351,234.14,233.98,0.12549]
[1733368293442,0.1440013,234.19,234.04,0.12549]
[1733368294309,0.1440013,234.19,234.07,20.0]
[1733368294515,0.1440013,234.19,234.1,0.12549]
[1733368295251,0.1440013,234.19,234.14,0.12549]
[1733368295755,0.1440013,234.19,234.14,23.902374]
[1733368295951,5.5351,234.38,234.18,0.12549]
[1733368296751,5.5351,234.38,234.14,23.776884]
[1733368296920,5.5351,234.38,234.13,6.40583606]
[1733368297124,0.12549,234.37,234.13,6.40583606]
[1733368297324,5.5351,234.38,234.14,0.12549]
[1733368297936,5.5351,234.38,234.18,0.12549]
[1733368298482,0.5116348,234.42,234.18,0.12549]
[1733368298748,0.5116348,234.42,234.22,0.12549]
[1733368299154,0.5116348,234.42,234.15,0.85152997]
[1733368299646,0.5116348,234.42,234.17,0.12549]
[1733368300031,0.5116348,234.42,234.24,0.12549]
[1733368300228,0.5116348,234.42,234.25,20.0]
[1733368300557,0.5116348,234.42,234.22,6.40258691]
[1733368301746,23.902374,234.41,234.22,6.40258691]
[1733368302058,0.12549,234.39,234.03,8.069]
[1733368302259,5.5351,234.38,233.96,0.85230835]
[1733368302438,0.12549,234.35,233.91,8.2946]
[1733368302756,0.12549,234.31,233.85,12.2335]
[1733368302965,23.776884,234.27,233.85,12.2335]
[1733368303135,23.902374,234.25,233.85,12.2335]
[1733368303461,1.371,234.21,233.76,25.70890677]
[1733368303653,23.776884,234.18,233.77,0.85315976]
[1733368303834,0.12549,234.17,233.77,0.85315976]
[1733368304032,10.6764,234.16,233.77,0.85315976]
[1733368304234,23.902374,234.15,233.76,25.70890677]
[1733368304846,23.902374,234.15,233.77,0.85305157]
[1733368305050,23.902374,234.15,233.82,0.85301677]
[1733368305235,23.662374,234.15,233.76,25.70890677]
[1733368305437,10.6761,234.17,233.76,25.70890677]
[1733368305649,10.6761,234.17,233.77,0.85294533]
[1733368307232,10.6761,234.17,233.77,0.85299027]
[1733368307437,10.6761,234.17,233.76,25.70890677]
[1733368307438,23.776884,234.18,233.82,0.85292871]
[1733368307753,1.371,234.19,233.79,10.693]
[1733368307964,12.0464,234.19,233.76,25.70890677]
[1733368308461,12.0464,234.19,233.77,0.85299472]
[1733368308751,12.0464,234.19,233.76,25.70890677]
[1733368308959,33.3965,234.19,233.76,25.70890677]
[1733368309448,1.97344722,234.18,233.76,25.70890677]
[1733368309876,23.776884,234.17,233.76,25.70890677]
[1733368310044,35.54571872,234.19,233.76,25.70890677]
[1733368310247,23.776884,234.15,233.76,25.70890677]
[1733368310658,23.776884,234.13,233.76,25.70890677]
[1733368311161,1.97344722,234.12,233.76,25.70890677]
[1733368312557,25.147884,234.11,233.76,14.61790677]
[1733368313068,23.776884,234.09,233.76,14.61790677]
[1733368313240,30.0,234.08,233.76,14.61790677]
[1733368313441,1.371,234.06,233.68,18.05919358]
[1733368313638,23.776884,234.05,233.68,18.05919358]
[1733368313942,23.776884,234.05,233.69,0.12549]
[1733368314166,23.776884,234.05,233.68,18.05919358]
[1733368314667,23.776884,234.05,233.69,0.12549]
[1733368314852,10.6819,234.04,233.69,0.12549]
[1733368315253,10.6819,234.04,233.72,0.12549]
[1733368316245,12.75,234.03,233.68,18.05919358]
[1733368316456,53.4095,234.04,233.68,18.05919358]
[1733368316964,10.6819,234.04,233.69,0.12549]
[1733368317171,23.776884,234.03,233.69,0.12549]
[1733368317778,23.776884,234.03,233.71,20.0]
[1733368318151,23.776884,234.03,233.72,0.12549]
[1733368318483,1.97344722,234.04,233.72,20.12549]
[1733368319065,1.97344722,234.04,233.77,0.12549]
[1733368319274,4.11849405,234.04,233.79,0.12549]
[1733368319570,1.97344722,234.04,233.78,20.0]
[1733368319776,10.6823,234.03,233.75,6.41633546]
[1733368320145,8.75854722,234.02,233.75,6.41633546]
[1733368320569,23.776884,234.01,233.75,6.41633546]
[1733368320964,25.75033122,234.01,233.78,20.0]
[1733368321161,6.7851,234.02,233.78,20.0]
[1733368321162,12.0481,234.15,233.81,0.12549]
[1733368321462,12.0481,234.15,233.83,6.41491634]
[1733368321850,12.0481,234.15,233.84,0.12549]
[1733368322773,12.0481,234.15,233.86,20.0]
[1733368322978,12.0481,234.15,233.83,6.41491634]
[1733368323184,23.776884,234.14,233.83,6.41491634]
[1733368323379,38.50033122,234.14,233.83,6.41491634]
[1733368323871,12.75,234.1,233.8,11.8621]
[1733368324050,12.75,234.08,233.8,11.8621]
[1733368324251,23.776884,234.09,233.75,6.41633546]
[1733368324450,32.0334,234.13,233.75,6.41633546]
[1733368324451,1.97344722,234.07,233.76,0.12549]
[1733368324666,10.6778,234.13,233.8,0.12549]
[1733368324882,7.269707,234.09,233.8,0.12549]
[1733368325265,7.269707,234.09,233.83,0.12549]
[1733368326687,3.34444722,234.15,233.82,15.0]
[1733368326991,10.6775,234.14,233.82,15.0]
[1733368327787,23.776884,234.13,233.84,20.0]
[1733368327965,10.6782,234.12,233.84,20.0]
[1733368328169,23.776884,234.11,233.84,20.0]
[1733368328371,23.776884,234.11,233.81,6.41481288]
[1733368328784,23.776884,234.11,233.84,20.0]
[1733368329289,10.6791,234.1,233.81,6.41481288]
[1733368329770,23.776884,234.09,233.81,6.41481288]
[1733368329970,12.75,234.14,233.84,20.0]
[1733368329971,10.6774,234.14,233.84,20.0]
[1733368331394,23.776884,234.13,233.84,20.0]
[1733368331587,23.776884,234.11,233.84,20.0]
[1733368331789,23.776884,234.11,233.81,6.41481288]
[1733368332298,36.526884,234.11,233.79,11.7424]
[1733368332496,36.526884,234.09,233.79,11.7424]
[1733368332792,36.526884,234.09,233.7,11.9046]
[1733368333591,12.75,234.07,233.7,11.9046]
[1733368333889,12.75,234.05,233.7,11.9046]
[1733368334090,23.776884,234.07,233.76,20.0]
[1733368334274,23.776884,234.07,233.75,6.41809961]
[1733368334775,34.01374722,234.08,233.79,0.12549]
[1733368334776,10.6801,234.08,233.79,0.12549]
[1733368334976,10.6801,234.08,233.78,20.0]
[1733368335372,32.0403,234.08,233.75,6.41809961]
[1733368335571,21.3602,234.08,233.75,6.41809961]
[1733368336503,25.75033122,234.07,233.75,6.41809961]
[1733368337790,23.776884,234.05,233.78,20.0]
[1733368337992,10.681,234.06,233.78,20.0]
[1733368338192,2.11828858,234.08,233.79,10.8732]
[1733368338382,10.6782,234.12,233.79,10.8732]
[1733368338585,10.6782,234.12,233.82,20.0]
[1733368338888,2.1783697,234.13,233.87,26.4142515]
[1733368339094,10.6763,234.17,233.91,20.0]
[1733368339473,10.6763,234.17,233.88,10.5045]
[1733368339671,21.3495,234.2,233.84,6.5374]
[1733368340290,36.26112594,234.2,233.84,6.5374]
[1733368340496,1.97344722,234.19,233.84,6.5374]
[1733368340698,23.776884,234.18,233.84,6.5374]
[1733368340900,36.526884,234.18,233.84,6.5374]
[1733368341078,23.51112594,234.2,233.84,6.5374]
[1733368341079,36.526884,234.16,233.84,6.5374]
[1733368341268,23.776884,234.16,233.84,6.5374]
[1733368341469,23.776884,234.14,233.84,6.5374]
[1733368341672,23.776884,234.12,233.84,6.5374]
[1733368341982,23.776884,234.1,233.84,6.5374]
[1733368342390,1.97344722,234.11,233.84,6.5374]
[1733368342899,10.6759,234.18,233.92,20.0]
[1733368343076,1.97344722,234.17,233.89,6.41423556]
[1733368343672,10.6764,234.16,233.89,6.41423556]
[1733368344089,1.97344722,234.15,233.89,6.41423556]
[1733368344392,23.776884,234.14,233.89,6.41423556]
[1733368344599,23.776884,234.14,233.84,6.5374]
[1733368344773,23.776884,234.12,233.84,6.5374]
[1733368345103,32.0293,234.16,233.85,10.57]
[1733368345104,1.97344722,234.11,233.85,10.57]
[1733368345277,1.97344722,234.17,233.87,6.8041]
[1733368345476,10.665,234.41,233.9,6.8041]
[1733368345679,6.8041,234.23,233.94,10.57]
[1733368346390,12.75,234.2,233.83,6.8041]
[1733368346896,23.776884,234.19,233.83,6.8041]
[1733368347100,136.64628585,234.21,233.83,6.8041]
[1733368347101,12.75,234.16,233.83,6.8041]
[1733368347280,23.776884,234.16,233.83,6.8041]
[1733368347682,32.0307,234.15,233.83,6.8041]
[1733368347900,23.776884,234.14,233.83,6.8041]
[1733368349900,32.0334,234.13,233.83,6.8041]
[1733368350079,23.776884,234.12,233.83,6.8041]
[1733368350611,10.6778,234.13,233.83,6.8041]
[1733368350781,1.97344722,234.12,233.83,6.8041]
[1733368350976,1.97344722,234.12,233.84,23.776884]
[1733368351583,1.97344722,234.12,233.83,6.8041]
[1733368351782,1.97344722,234.12,233.84,23.776884]
[1733368352182,1.97344722,234.12,233.84,30.19120438]
[1733368352800,1.97344722,234.12,233.84,6.41432038]
[1733368353001,10.6787,234.11,233.84,6.41432038]
[1733368353205,23.776884,234.1,233.84,6.41432038]
[1733368354708,10.6796,234.09,233.84,6.41432038]
[1733368355006,10.6796,234.09,233.78,10.57]
[1733368355007,23.776884,234.08,233.78,10.57]
[1733368355304,36.526884,234.08,233.75,6.7385]
[1733368355508,36.526884,234.08,233.71,10.8767]
[1733368356605,168.93001439,234.09,233.67,6.5201]
[1733368356606,12.75,234.05,233.67,6.5201]
[1733368356780,36.526884,233.99,233.6,0.5116348]
[1733368357106,23.776884,233.9,233.6,0.5116348]
[1733368357605,23.776884,233.91,233.6,0.5116348]
[1733368358541,10.6883,233.9,233.6,0.5116348]
[1733368358688,23.776884,233.89,233.6,0.5116348]
[1733368360210,1.97344722,233.88,233.6,0.5116348]
[1733368360388,10.6896,233.87,233.6,0.5116348]
[1733368360802,32.0689,233.87,233.6,0.5116348]
[1733368361412,23.776884,233.86,233.6,0.5116348]
[1733368361590,32.0689,233.87,233.6,0.5116348]
[1733368361800,53.4482,233.87,233.6,0.5116348]
[1733368362109,1.97344722,233.86,233.6,0.5116348]
[1733368362616,10.6906,233.85,233.6,0.5116348]
[1733368362815,1.97344722,233.86,233.61,17.3388]
[1733368362983,13.0414901,233.89,233.65,20.0]
[1733368363190,1.97344722,233.96,233.63,17.3388]
[1733368364614,10.686,233.95,233.63,17.3388]
[1733368364792,23.776884,233.94,233.63,17.3388]
[1733368364983,10.686,233.95,233.64,0.12549]
[1733368365187,32.058,233.95,233.63,17.3388]
[1733368365492,15.25004429,233.94,233.63,17.3388]
[1733368365892,1.97344722,233.94,233.63,17.3388]
[1733368366303,23.776884,233.92,233.63,17.3388]
[1733368366502,10.6878,233.91,233.63,17.3388]
[1733368366806,23.776884,233.9,233.63,17.3388]
[1733368369102,21.372,233.95,233.63,17.3388]
[1733368369103,23.776884,233.88,233.63,17.3388]
[1733368369302,23.776884,233.92,233.63,17.3388]
[1733368369613,1.97344722,233.93,233.63,17.3388]
[1733368369813,1.97344722,233.93,233.61,6.4219462]
[1733368370016,1.97344722,233.93,233.6,0.5116348]
[1733368370017,17.105705,233.88,233.64,15.3849]
[1733368370996,10.6896,233.87,233.64,15.3849]
[1733368371214,23.776884,233.86,233.64,15.3849]
[1733368372006,10.6906,233.85,233.64,15.3849]
[1733368372388,23.776884,233.84,233.64,15.3849]
[1733368374820,2.10778119,233.87,233.64,15.3849]
[1733368375020,10.6915,233.83,233.64,15.3849]
[1733368375196,23.776884,233.82,233.64,15.3849]
[1733368376016,10.6924,233.81,233.64,15.3849]
[1733368376218,23.776884,233.8,233.64,15.3849]
[1733368376713,30.0,233.79,233.64,15.3849]
[1733368376917,23.776884,233.78,233.64,15.3849]
[1733368377114,30.0,233.79,233.64,15.3849]
[1733368377293,23.776884,233.78,233.64,15.3849]
[1733368377999,2.07758403,233.79,233.64,15.3849]
[1733368378216,10.6906,233.85,233.64,15.3849]
[1733368378419,2.05525266,233.85,233.64,15.3849]
[1733368378725,2.05525266,233.85,233.7,6.2517]
[1733368378926,10.6782,234.12,233.72,6.2517]
[1733368379099,1.97344722,234.11,233.72,6.2517]
[1733368379297,12.75,234.1,233.72,6.2517]
[1733368379528,12.75,234.11,233.72,6.2517]
[1733368379819,12.75,234.08,233.72,6.2517]
[1733368380123,12.75,234.04,233.72,6.2517]
[1733368380499,14.72344722,234.03,233.72,6.2517]
[1733368380695,12.75,234.01,233.72,6.2517]
[1733368380900,1.97344722,234.0,233.72,6.2517]
[1733368381119,36.526884,233.99,233.72,6.2517]
[1733368381336,23.776884,233.99,233.72,6.2517]
[1733368381622,1.97344722,233.98,233.72,6.2517]
[1733368382123,1.97344722,233.98,233.74,5.9084]
[1733368382427,1.97344722,233.98,233.74,12.32714461]
[1733368382610,10.6851,233.97,233.74,12.32714461]
[1733368383415,1.97344722,233.96,233.74,12.32714461]
[1733368383930,2.05646238,233.98,233.75,15.4263]
[1733368384102,10.6846,233.99,233.75,15.4263]
[1733368384504,1.97344722,233.98,233.75,15.4263]
[1733368385005,23.776884,233.97,233.75,15.4263]
[1733368385197,10.6846,233.99,233.75,15.4263]
[1733368385403,23.776884,233.95,233.75,15.4263]
[1733368385708,1.97344722,233.94,233.75,15.4263]
[1733368386314,23.776884,233.93,233.75,15.4263]
[1733368386716,23.776884,233.91,233.75,15.4263]
[1733368387117,23.776884,233.92,233.75,15.4263]
[1733368387824,23.776884,233.92,233.74,6.41874461]
[1733368387825,1.97344722,233.93,233.76,15.7843]
[1733368388030,1.97344722,234.01,233.79,5.9816]
[1733368388211,1.97344722,234.01,233.8,9.8027]
[1733368388405,1.97344722,234.01,233.81,5.9816]
[1733368388610,2.1070726,234.02,233.81,5.9816]
[1733368388913,10.6764,234.16,233.81,5.9816]
[1733368389224,1.97344722,234.02,233.81,5.9816]
[1733368389803,1.97344722,234.02,233.83,5.9871]
[1733368390200,10.6833,234.01,233.83,5.9871]
[1733368390638,1.97344722,234.0,233.83,5.9871]
[1733368392212,23.776884,233.99,233.83,5.9871]
[1733368392613,23.776884,233.98,233.83,5.9871]
[1733368393224,25.75033122,233.98,233.83,5.9871]
[1733368393713,23.776884,233.98,233.83,5.9871]
[1733368393909,1.97344722,233.97,233.83,5.9871]
[1733368394134,23.776884,233.96,233.83,5.9871]
[1733368395207,10.6842,233.99,233.83,5.9871]
[1733368395407,23.776884,233.98,233.83,5.9871]
[1733368395603,25.75033122,233.98,233.83,5.9871]
[1733368397327,23.776884,233.96,233.83,5.9871]
[1733368398241,23.776884,233.96,233.75,5.3504]
[1733368398830,32.0553,233.97,233.75,5.3504]
[1733368398831,53.4255,233.97,233.75,5.3504]
[1733368399023,23.776884,233.96,233.75,5.3504]
[1733368399228,10.686,233.95,233.75,5.3504]
[1733368399942,2.08043333,233.98,233.75,5.3504]
[1733368400118,1.97344722,233.96,233.77,5.3535]
[1733368400544,1.97344722,233.96,233.79,5.3535]
[1733368400718,1.97344722,234.03,233.83,5.1817]
[1733368401238,1.97344722,234.03,233.85,5.1817]
[1733368401536,2.04415869,234.05,233.85,5.1817]
[1733368401738,1.97344722,234.09,233.86,8.4113]
[1733368402036,1.97344722,234.09,233.86,13.53]
[1733368402545,1.97344722,234.09,233.9,13.53]
[1733368402721,1.97344722,234.09,233.93,8.4113]
[1733368403035,2.05110912,234.1,233.93,8.4113]
[1733368403238,10.6771,234.15,233.93,8.4113]
[1733368403618,10.6771,234.15,233.94,5.1187]
[1733368404742,10.6714,234.27,233.96,5.1395]
[1733368405035,32.0144,234.27,233.99,5.1395]
[1733368405226,32.0144,234.27,234.0,8.6876]
[1733368405437,32.0144,234.27,234.01,5.2918]
[1733368406626,10.6723,234.25,234.01,5.2918]
[1733368406811,23.776884,234.24,234.01,5.2918]
[1733368407639,10.6723,234.25,234.04,5.1773]
[1733368407931,6.414349,234.23,234.04,5.1773]
[1733368408335,14.72534783,234.22,234.04,5.1773]
[1733368408635,6.414349,234.23,234.05,8.1019]
[1733368408828,6.414349,234.23,234.07,8.1019]
[1733368409027,6.414349,234.23,234.09,13.3265]
[1733368410241,6.414349,234.23,234.1,5.082]
[1733368411026,2.09676674,234.27,234.12,5.0136]
[1733368411231,137.02779545,234.49,234.13,8.4621]
[1733368411435,137.02779545,234.49,234.14,5.0136]
[1733368411629,10.665,234.41,234.14,5.0136]
[1733368411839,10.665,234.41,234.17,8.4621]
[1733368412140,2.52792555,234.42,234.21,8.4621]
[1733368412346,0.5116348,234.42,234.22,5.0136]
[1733368412835,136.66138309,234.64,234.27,8.2405]
[1733368412836,10.6604,234.52,234.27,8.2405]
[1733368413033,10.6604,234.52,234.24,23.776884]
[1733368413034,10.6604,234.52,234.29,8.2405]
[1733368413240,10.6604,234.52,234.3,5.4956]
[1733368413539,12.69979262,234.52,234.32,5.4956]
[1733368414529,2.03939262,234.52,234.34,5.0222]
[1733368414725,10.658,234.57,234.34,5.0222]
[1733368416052,12.69266419,234.57,234.34,5.0222]
[1733368417424,34.00816419,234.57,234.34,5.0222]
[1733368417648,23.776884,234.56,234.34,5.0222]
[1733368418650,10.6587,234.55,234.34,5.0222]
[1733368418946,2.03466419,234.57,234.36,5.419]
[1733368419149,10.6566,234.6,234.38,5.419]
[1733368420051,0.5116348,234.66,234.4,5.3317]
[1733368420351,1.97344722,234.59,234.4,5.3317]
[1733368421750,23.776884,234.58,234.4,5.3317]
[1733368422050,1.97344722,234.57,234.4,5.3317]
[1733368422371,23.776884,234.56,234.4,5.3317]
[1733368422567,23.776884,234.57,234.4,5.3317]
[1733368422747,23.776884,234.54,234.4,5.3317]
[1733368423075,12.70625912,234.59,234.43,8.6762]
[1733368423263,2.04905912,234.59,234.43,8.6762]
[1733368423462,10.655,234.64,234.43,8.6762]
[1733368424556,10.6525,234.69,234.45,5.5014]
[1733368425246,2.59857545,234.66,234.47,5.5354]
[1733368425441,0.5116348,234.66,234.47,5.5354]
[1733368425644,0.5116348,234.66,234.48,23.776884]
[1733368426099,0.5116348,234.66,234.47,5.5354]
[1733368426752,0.5116348,234.66,234.48,23.776884]
[1733368426947,0.5116348,234.66,234.49,13.4009]
[1733368427568,13.1802026,234.66,234.49,13.4009]
[1733368427752,11.1653348,234.66,234.49,13.4009]
[1733368428261,23.776884,234.65,234.49,13.4009]
[1733368429470,24.2885188,234.66,234.49,13.4009]
[1733368430883,0.5116348,234.66,234.49,13.4009]
[1733368431167,0.5116348,234.66,234.5,8.7745]
[1733368431378,10.6514,234.71,234.52,15.17109336]
[1733368432644,23.776884,234.77,234.52,15.17109336]
[1733368432856,23.27389593,234.78,234.52,15.17109336]
[1733368433960,33.92209593,234.78,234.52,15.17109336]
[1733368434148,12.62479593,234.78,234.54,13.7463]
[1733368434472,0.5116348,234.9,234.63,5.3193]
[1733368434661,10.6441,234.88,234.63,5.3193]
[1733368434972,10.6441,234.88,234.67,5.3193]
[1733368436453,23.776884,234.87,234.67,5.3193]
[1733368436883,10.6441,234.88,234.67,5.3193]
[1733368438586,10.6446,234.86,234.67,5.3193]
[1733368438782,23.776884,234.85,234.67,5.3193]
[1733368439962,53.223,234.86,234.67,5.3193]
[1733368440771,23.776884,234.85,234.67,5.3193]
[1733368441275,10.6446,234.86,234.67,5.3193]
[1733368442002,13.15424891,234.9,234.7,5.4971]
[1733368442489,13.15424891,234.9,234.72,5.4971]
[1733368443077,13.15424891,234.9,234.73,8.0303]
[1733368444092,2.51134891,234.9,234.74,5.4971]
[1733368444299,2.51134891,234.9,234.75,13.0372]
[1733368444797,10.6432,234.89,234.75,13.0372]
[1733368447699,0.5116348,234.9,234.75,13.0372]
[1733368448465,2.51424051,234.9,234.75,13.0372]
[1733368448894,2.51424051,234.9,234.73,6.3940536]
[1733368448895,21.2717,235.06,234.77,14.1499]
[1733368449083,21.2717,235.06,234.83,14.1499]
[1733368449287,10.6328,235.12,234.85,8.6902]
[1733368449794,53.1642,235.12,234.85,8.6902]
[1733368449974,58.4717,235.12,234.84,5.4597]
[1733368450584,71.2217,235.12,234.84,5.4597]
[1733368451184,23.776884,235.11,234.84,5.4597]
[1733368451572,136.53710483,235.05,234.73,6.3940536]
[1733368451874,23.776884,235.04,234.73,6.3940536]
[1733368452672,53.1845,235.03,234.73,6.3940536]
[1733368453108,53.1845,235.03,234.74,8.3717]